bitfinex/quotes_ETHUSD_20250426
["timestamp","ask_amount","ask_price","bid_price","bid_amount"]
[1745671856117,4.933,1794.9,1794.8,5.57153037]
[1745671857587,4.933,1794.9,1794.7,6.39047565]
[1745671857789,4.933,1794.9,1794.6,11.14431995]
[1745671858127,4.933,1794.9,1794.7,5.57195672]
[1745671858626,0.21447393,1794.8,1794.7,5.57195672]
[1745671859039,5.34686896,1794.9,1794.7,5.57195672]
[1745671859213,0.21447393,1794.8,1794.7,5.57195672]
[1745671859511,5.34686896,1794.9,1794.7,5.57195672]
[1745671859829,0.21447393,1794.8,1794.7,5.57195672]
[1745671860322,0.21447393,1794.8,1794.6,5.57212206]
[1745671860525,5.34686896,1794.9,1794.6,5.57212206]
[1745671860722,0.21447393,1794.8,1794.6,5.57212206]
[1745671860927,5.34686896,1794.9,1794.6,5.57212206]
[1745671860928,5.34686896,1794.9,1794.7,5.57196188]
[1745671861091,0.21447393,1794.8,1794.7,5.57196188]
[1745671861290,0.8041,1794.8,1794.6,5.57205123]
[1745671861496,0.21447393,1794.7,1794.6,5.57205123]
[1745671862235,5.84813765,1794.9,1794.6,5.57205123]
[1745671862391,0.21447393,1794.7,1794.6,5.57205123]
[1745671862939,5.84813765,1794.9,1794.6,11.14407672]
[1745671863096,0.21447393,1794.8,1794.6,11.14407672]
[1745671863294,5.84813765,1794.9,1794.6,5.57202549]
[1745671863492,0.21447393,1794.8,1794.6,5.57202549]
[1745671863700,16.726,1795.0,1794.9,6.40214102]
[1745671864039,21.87275587,1795.0,1794.9,6.40214102]
[1745671867098,0.21375587,1795.0,1794.9,6.40214102]
[1745671867299,4.933,1795.1,1795.0,5.57103064]
[1745671867500,4.29606869,1795.6,1795.3,5.56998994]
[1745671867697,4.933,1795.5,1795.2,5.57027708]
[1745671868112,1.20804191,1795.6,1795.4,5.56952041]
[1745671868293,4.933,1795.5,1795.3,5.56997738]
[1745671868633,1.20804191,1795.6,1795.1,0.8308]
[1745671868634,0.41324191,1795.6,1795.5,5.56947925]
[1745671868938,4.933,1795.6,1795.5,5.56947925]
[1745671869532,4.933,1795.6,1795.4,6.34021805]
[1745671869837,4.933,1795.6,1795.4,5.56961805]
[1745671870037,4.933,1795.6,1795.5,5.56947925]
[1745671870238,5.34205973,1795.6,1795.5,5.56947925]
[1745671872713,4.933,1795.6,1795.5,5.56923996]
[1745671873420,16.73,1795.7,1795.6,5.56916907]
[1745671873626,21.663,1795.7,1795.6,5.56916907]
[1745671874142,21.663,1795.7,1795.5,5.56932157]
[1745671876137,21.663,1795.7,1795.4,5.56962954]
[1745671876341,21.663,1795.7,1795.5,5.5693292]
[1745671878041,21.663,1795.7,1795.6,5.56916907]
[1745671878948,21.662,1795.7,1795.6,6.36136907]
[1745671881652,1.2496987,1796.2,1795.6,1.98526983]
[1745671881804,4.927,1796.1,1796.0,5.56777826]
[1745671882623,4.927,1796.1,1796.0,6.35997826]
[1745671885923,4.927,1796.1,1796.0,5.56777826]
[1745671888750,5.11964904,1796.1,1796.0,5.56777826]
[1745671889553,5.11964904,1796.1,1795.9,5.56804565]
[1745671890345,5.11964904,1796.1,1796.0,5.56792873]
[1745671892855,5.11964904,1796.1,1795.9,5.56804441]
[1745671894464,5.11964904,1796.1,1795.9,11.13608313]
[1745671895771,5.11964904,1796.1,1796.0,5.56792873]
[1745671905637,5.11964904,1796.1,1795.8,6.36053489]
[1745671905839,0.50126869,1796.0,1795.6,5.56901346]
[1745671906076,0.50126869,1795.8,1795.4,0.8175]
[1745671906237,0.7833,1795.6,1795.4,5.56965025]
[1745671906440,4.925,1795.7,1795.5,5.56947925]
[1745671907084,4.925,1795.7,1795.6,5.56916907]
[1745671907579,4.925,1795.7,1795.5,5.56930071]
[1745671909175,4.925,1795.7,1795.5,11.13854145]
[1745671909596,4.925,1795.7,1795.5,5.56924074]
[1745671909910,4.925,1795.7,1795.6,5.56916907]
[1745671915214,4.925,1795.7,1795.5,5.56934498]
[1745671916810,4.925,1795.7,1795.3,5.56995224]
[1745671917020,4.925,1795.7,1795.4,5.5694931]
[1745671917715,4.925,1795.7,1795.5,5.56943875]
[1745671918513,0.19103502,1795.6,1795.5,5.56943875]
[1745671920785,4.925,1795.7,1795.6,5.56916907]
[1745671924638,4.925,1795.7,1795.6,6.33896907]
[1745671926112,4.925,1795.7,1795.6,7.52980985]
[1745671927928,0.7969,1796.2,1796.0,5.56785777]
[1745671928130,0.7969,1796.2,1796.1,5.56761872]
[1745671928292,5.7179,1796.2,1796.0,5.56775645]
[1745671929134,4.921,1796.2,1795.9,5.56812649]
[1745671929318,7.921,1796.2,1795.9,5.56812649]
[1745671930323,4.921,1796.2,1795.9,6.68179402]
[1745671931237,5.42226869,1796.2,1795.8,5.56840044]
[1745671932532,5.42226869,1796.2,1795.9,5.56812009]
[1745671933618,0.19252945,1796.1,1796.0,5.56792873]
[1745671933800,0.19252945,1796.1,1796.0,6.39832873]
[1745671933801,5.11352945,1796.1,1796.0,6.39832873]
[1745671942358,0.19252945,1796.1,1796.0,6.39832873]
[1745671942533,4.92,1796.1,1796.0,7.59497361]
[1745671942851,5.08439491,1796.1,1796.0,7.59497361]
[1745671943952,0.16439491,1796.1,1796.0,7.59497361]
[1745671944166,4.915,1796.3,1796.2,6.37830876]
[1745671944344,21.635,1796.4,1796.3,6.37799883]
[1745671944654,0.8408,1796.9,1796.8,5.56544968]
[1745671944953,5.7558,1796.9,1796.8,5.56544968]
[1745671945777,5.7558,1796.9,1796.6,5.56606924]
[1745671945956,5.7558,1796.9,1796.7,5.5657512]
[1745671946155,4.965,1796.9,1796.8,5.56544968]
[1745671946863,4.965,1796.9,1796.8,6.37644968]
[1745671947693,4.965,1796.9,1796.8,5.56544968]
[1745671948582,5.1220485,1796.9,1796.8,5.56544968]
[1745671949986,5.1220485,1796.9,1796.7,5.56561257]
[1745671950582,5.1220485,1796.9,1796.7,5.56553892]
[1745671951395,5.1220485,1796.9,1796.8,5.56544968]
[1745671952283,5.1220485,1796.9,1796.8,6.38944968]
[1745671952485,5.1220485,1796.9,1796.8,7.58494854]
[1745671954489,5.1220485,1796.9,1796.8,5.56544968]
[1745671972107,5.1220485,1796.9,1796.7,6.33163892]
[1745671972108,5.1220485,1796.9,1796.6,5.56577347]
[1745671972310,0.7615,1796.8,1796.5,0.78466489]
[1745671972469,0.7615,1796.8,1796.6,5.56589108]
[1745671972665,0.14645933,1796.7,1796.6,5.56589108]
[1745671978290,0.14645933,1796.7,1796.5,6.35081356]
[1745671979082,0.14645933,1796.7,1796.6,5.56606924]
[1745671987328,0.64772802,1796.7,1796.5,0.78466489]
[1745671987627,0.7635,1796.6,1796.5,0.78466489]
[1745671987786,1.86476798,1796.6,1796.5,0.78466489]
[1745671987983,1.86476798,1796.6,1796.1,0.792]
[1745671988205,4.908,1796.5,1796.4,5.56653887]
[1745671988379,4.908,1796.5,1796.3,5.56681772]
[1745671988576,0.14561997,1796.4,1796.3,5.56681772]
[1745671988776,0.14561997,1796.4,1796.2,5.56709164]
[1745671989018,1.10126798,1796.4,1796.2,5.56709164]
[1745671989786,0.14561997,1796.4,1796.2,5.56709164]
[1745671990321,0.14561997,1796.4,1796.3,5.56699883]
[1745671991212,0.14561997,1796.4,1796.3,7.46800788]
[1745671995444,4.908,1796.5,1796.4,5.56668893]
[1745671996214,5.05110147,1796.5,1796.4,5.56668893]
[1745671996844,4.908,1796.5,1796.4,5.56668893]
[1745671997836,5.05068172,1796.5,1796.4,5.56668893]
[1745671998136,5.05068172,1796.5,1796.4,6.87015861]
[1745671998643,4.908,1796.5,1796.4,6.87015861]
[1745671999251,5.05068172,1796.5,1796.4,6.87015861]
[1745671999645,4.908,1796.5,1796.4,6.87015861]
[1745672003825,4.908,1796.5,1796.4,5.56668893]
[1745672004039,5.05068172,1796.5,1796.4,5.56668893]
[1745672004841,4.908,1796.5,1796.4,5.56668893]
[1745672019164,4.908,1796.5,1796.4,5.56668893]
[1745672019662,5.05086164,1796.5,1796.4,5.56668893]
[1745672020437,4.908,1796.5,1796.4,5.56668893]
[1745672020646,4.908,1796.5,1796.4,6.87015861]
[1745672026471,0.8298,1796.8,1796.7,5.56575944]
[1745672026662,5.87560164,1796.8,1796.7,5.56575944]
[1745672040273,5.87560164,1796.8,1796.6,5.56595348]
[1745672040474,4.897,1796.7,1796.6,5.56595348]
[1745672040786,5.04196043,1796.7,1796.6,5.56595348]
[1745672042695,5.04196043,1796.7,1796.6,6.67918505]
[1745672046278,5.04196043,1796.7,1796.6,5.56595348]
[1745672049068,5.04196043,1796.7,1796.3,8.05040905]
[1745672049264,0.7843,1796.4,1796.1,5.56755631]
[1745672049471,0.95518595,1796.2,1796.0,5.56767131]
[1745672049694,0.95518595,1796.2,1796.0,5.5676967]
[1745672050004,0.14502043,1796.1,1796.0,5.5676967]
[1745672050297,0.95518595,1796.2,1796.1,5.56761872]
[1745672050503,5.85218595,1796.3,1796.2,5.56730876]
[1745672050801,5.85218595,1796.3,1796.1,5.567435]
[1745672051570,1.73948595,1796.2,1796.0,5.56773696]
[1745672051869,0.95518595,1796.1,1796.0,5.56773696]
[1745672053399,1.73948595,1796.2,1796.1,5.56761872]
[1745672053982,1.73948595,1796.2,1795.9,5.56801984]
[1745672053983,1.73948595,1796.2,1796.0,5.56773727]
[1745672054407,1.73948595,1796.2,1796.1,5.56761872]
[1745672056909,1.73948595,1796.2,1796.0,5.56776235]
[1745672057602,1.73948595,1796.2,1796.0,5.5676869]
[1745672057804,1.73948595,1796.2,1796.0,5.56781802]
[1745672058586,1.73948595,1796.2,1796.0,5.56773164]
[1745672059012,1.73948595,1796.2,1795.9,5.56805745]
[1745672059013,0.95518595,1796.1,1795.9,5.56805745]
[1745672059215,0.95518595,1796.0,1795.9,5.56805745]
[1745672060118,0.95518595,1796.1,1796.0,5.56771023]
[1745672062099,1.73948595,1796.2,1796.1,5.56761872]
[1745672062598,1.73948595,1796.2,1796.0,5.56779891]
[1745672064019,1.73948595,1796.2,1796.0,5.56771566]
[1745672064199,1.73948595,1796.2,1796.1,5.56761872]
[1745672064520,0.7845,1796.1,1795.8,5.56841348]
[1745672064731,0.95518595,1795.9,1795.8,5.56841348]
[1745672065016,1.73968595,1796.1,1795.9,5.56802984]
[1745672065179,7.898,1796.0,1795.9,5.56802984]
[1745672066587,0.7845,1796.3,1796.1,5.56750617]
[1745672066885,5.85318595,1796.2,1796.0,5.56772577]
[1745672067090,0.95518595,1796.1,1796.0,5.56772577]
[1745672067293,1.73968595,1796.1,1795.9,5.5680038]
[1745672067589,1.73968595,1796.1,1795.9,11.13606046]
[1745672067784,1.73968595,1796.1,1795.9,5.5680038]
[1745672068528,0.13770316,1796.0,1795.9,5.5680038]
[1745672070132,0.13770316,1796.0,1795.8,5.56839257]
[1745672070420,0.13770316,1796.0,1795.7,5.56868353]
[1745672071019,0.13770316,1796.0,1795.8,5.56854803]
[1745672072310,0.13770316,1796.0,1795.9,5.56823876]
[1745672072627,5.85318595,1796.2,1795.9,5.56823876]
[1745672072800,0.13686308,1796.0,1795.9,5.56823876]
[1745672073001,5.85318595,1796.2,1795.9,5.56823876]
[1745672073203,0.13686308,1796.0,1795.9,5.56823876]
[1745672073518,0.13686308,1796.0,1795.8,5.56834673]
[1745672074233,0.13686308,1796.0,1795.8,5.56829856]
[1745672075199,1.09204903,1796.0,1795.8,5.56829856]
[1745672075830,1.09204903,1796.0,1795.9,5.56823876]
[1745672079233,1.09204903,1796.0,1795.8,5.56837762]
[1745672080939,4.894,1795.9,1795.8,5.56837762]
[1745672081233,5.03026303,1795.9,1795.8,5.56837762]
[1745672096260,5.03026303,1795.9,1795.8,5.56854883]
[1745672109877,5.03026303,1795.9,1795.7,5.56873245]
[1745672110179,4.889,1795.8,1795.7,5.56873245]
[1745672110373,5.02484303,1795.8,1795.7,5.56873245]
[1745672122270,5.78984303,1795.8,1795.6,6.13]
[1745672122471,4.889,1795.7,1795.6,11.69916795]
[1745672122791,5.02466295,1795.7,1795.6,11.69916795]
[1745672123511,5.02466295,1795.7,1795.6,12.47816795]
[1745672123727,5.02466295,1795.7,1795.6,14.20500526]
[1745672126309,5.02466295,1795.7,1795.6,12.47816795]
[1745672136399,5.02466295,1795.7,1795.6,11.69916795]
[1745672137823,5.02466295,1795.7,1795.4,5.56961706]
[1745672138008,5.77696295,1795.7,1795.4,5.56961706]
[1745672138926,0.8212,1795.6,1795.4,5.56961706]
[1745672139221,0.1346427,1795.5,1795.3,5.56990217]
[1745672139524,0.1346427,1795.5,1795.4,5.56978946]
[1745672148032,4.889,1795.7,1795.5,5.56920073]
[1745672149129,7.889,1795.7,1795.6,5.56916907]
[1745672152334,4.889,1795.7,1795.6,5.56916907]
[1745672152632,4.884,1795.7,1795.6,6.76565447]
[1745672157446,4.884,1795.7,1795.6,7.59205447]
[1745672158645,5.0187027,1795.7,1795.6,7.59205447]
[1745672167757,5.0187027,1795.7,1795.6,6.39556907]
[1745672170157,4.878,1796.5,1796.0,0.7629]
[1745672170339,4.878,1796.5,1796.4,5.56668893]
[1745672170749,4.878,1796.5,1796.4,7.44294654]
[1745672170954,0.05,1796.9,1796.8,5.56544968]
[1745672171158,4.928,1796.9,1796.8,5.56544968]
[1745672172873,0.8075,1796.8,1796.6,5.56582785]
[1745672173077,0.8075,1796.8,1796.7,5.56575944]
[1745672177176,0.8075,1796.8,1796.6,5.56580489]
[1745672177569,1.30880435,1796.8,1796.6,5.56580489]
[1745672178887,4.30880435,1796.8,1796.5,5.56623644]
[1745672179073,4.30880435,1796.8,1796.4,5.56653358]
[1745672179865,4.30880435,1796.8,1796.5,5.56626081]
[1745672185359,0.10518287,1796.7,1796.5,5.56626081]
[1745672187676,4.30880435,1796.8,1796.5,5.56626081]
[1745672189602,1.30880435,1796.8,1796.5,5.56617696]
[1745672191308,0.8066,1796.7,1796.5,5.56617696]
[1745672192398,0.8066,1796.7,1796.6,5.56606924]
[1745672192609,0.8066,1796.7,1796.5,5.56619181]
[1745672192907,0.8066,1796.7,1796.5,11.13237988]
[1745672193106,0.8066,1796.7,1796.5,5.56618807]
[1745672193587,4.871,1796.6,1796.5,5.56618807]
[1745672200019,4.871,1796.6,1796.1,0.795]
[1745672200174,0.7887,1796.5,1795.9,5.5680373]
[1745672200378,0.7887,1796.5,1796.2,5.56701391]
[1745672201790,0.95561587,1796.4,1796.2,5.56701391]
[1745672202311,0.95561587,1796.4,1796.3,5.56699883]
[1745672203100,0.95561587,1796.4,1796.2,5.56715861]
[1745672203536,0.95561587,1796.4,1796.2,11.13427758]
[1745672203737,1.29036258,1796.5,1796.2,11.13427758]
[1745672204034,1.71059922,1796.5,1796.2,11.13427758]
[1745672204432,1.71059922,1796.5,1796.2,5.56711897]
[1745672205917,1.71059922,1796.5,1796.2,11.13429507]
[1745672206119,1.71059922,1796.5,1796.3,5.56699741]
[1745672209433,1.20893664,1796.5,1796.3,5.56699741]
[1745672215532,0.7887,1796.5,1796.3,5.56699741]
[1745672216638,5.6616,1796.6,1796.4,5.5666837]
[1745672218344,5.6616,1796.6,1796.3,5.56680708]
[1745672219047,6.08037684,1796.6,1796.3,5.56680708]
[1745672220042,6.08037684,1796.6,1796.4,5.56660691]
[1745672220650,5.6616,1796.6,1796.4,5.56660691]
[1745672220816,4.871,1796.6,1796.4,5.56660691]
[1745672222546,4.871,1796.6,1796.3,5.56681781]
[1745672223448,4.871,1796.6,1796.3,11.13363562]
[1745672224328,4.871,1796.6,1796.3,5.56681781]
[1745672225753,5.82646464,1796.6,1796.3,5.56681781]
[1745672226055,0.7548,1796.5,1796.1,6.34676241]
[1745672226243,0.7548,1796.5,1796.1,11.91415169]
[1745672226443,0.95546464,1796.4,1796.1,11.91415169]
[1745672227087,0.95546464,1796.4,1796.2,5.56729913]
[1745672228821,0.95546464,1796.4,1796.1,6.34665014]
[1745672229021,0.95546464,1796.4,1796.1,5.56745014]
[1745672229421,4.867,1796.3,1796.1,5.56745014]
[1745672229822,4.867,1796.3,1796.2,5.56730876]
[1745672230457,4.867,1796.3,1796.2,7.43778465]
[1745672238334,4.867,1796.3,1796.2,6.32430876]
[1745672245538,17.5255,1796.9,1796.3,5.56670359]
[1745672245745,4.866,1796.8,1796.7,5.56559413]
[1745672250969,16.764,1796.9,1796.8,5.56544968]
[1745672251148,21.63,1796.9,1796.8,6.67855406]
[1745672254385,21.63,1796.9,1796.8,5.56544968]
[1745672258160,21.63,1796.9,1796.8,6.35984968]
[1745672263520,4.916,1796.9,1796.8,6.35984968]
[1745672268819,4.916,1796.9,1796.8,5.56544968]
[1745672277495,4.916,1796.9,1796.8,6.39234968]
[1745672277719,4.916,1796.9,1796.8,7.58814406]
[1745672287833,4.916,1796.9,1796.8,6.58814406]
[1745672289938,4.916,1796.9,1796.8,5.76124406]
[1745672291402,4.916,1796.9,1796.8,4.56544968]
[1745672292230,0.05,1796.9,1796.8,4.56544968]
[1745672292437,1.75989651,1796.9,1796.3,3.2664765]
[1745672292626,1.70989651,1796.5,1796.1,0.7546]
[1745672292821,1.70989651,1796.5,1796.3,5.56669311]
[1745672292822,4.855,1796.4,1796.3,5.56669311]
[1745672294309,4.855,1796.4,1796.2,5.56709233]
[1745672294510,1.30956815,1796.3,1796.1,5.56741447]
[1745672295313,1.30956815,1796.3,1795.8,6.34527222]
[1745672295513,1.30956815,1796.3,1795.8,7.30906709]
[1745672295817,1.30956815,1796.3,1796.2,5.56730876]
[1745672296435,0.8079,1796.3,1796.2,5.56730876]
[1745672296607,4.855,1796.4,1796.3,5.56699883]
[1745672297208,5.35666815,1796.4,1796.2,11.13423184]
[1745672297411,5.35666815,1796.4,1796.2,5.567078]
[1745672297621,5.35666815,1796.4,1796.2,11.13419609]
[1745672297822,5.35666815,1796.4,1796.2,11.13416165]
[1745672298122,5.35666815,1796.4,1796.2,5.567078]
[1745672298620,5.35666815,1796.4,1796.3,5.56699883]
[1745672298835,3.8079,1796.5,1796.2,5.56714392]
[1745672299014,4.856,1796.4,1796.3,5.56688515]
[1745672300242,4.856,1796.4,1796.2,5.56712098]
[1745672300546,4.856,1796.4,1796.1,5.56742698]
[1745672300839,0.8246,1796.2,1796.1,5.56742698]
[1745672304334,1.31066815,1796.3,1796.2,5.56730876]
[1745672306839,0.809,1796.3,1796.2,5.56730876]
[1745672307339,0.809,1796.3,1796.1,5.56744938]
[1745672307650,0.809,1796.3,1796.1,11.13483634]
[1745672308050,0.809,1796.3,1796.1,5.56738696]
[1745672308410,0.809,1796.3,1796.2,5.56730876]
[1745672309549,5.665,1796.4,1796.0,0.8135]
[1745672309852,8.665,1796.4,1796.3,5.56699883]
[1745672310426,7.856,1796.4,1796.3,5.56699883]
[1745672311034,7.856,1796.4,1796.2,5.56720148]
[1745672312151,7.856,1796.4,1796.2,5.56709275]
[1745672314555,0.809,1796.3,1796.2,5.56709275]
[1745672319157,7.856,1796.4,1796.2,5.56709275]
[1745672319561,7.856,1796.4,1796.3,5.56699883]
[1745672320956,4.856,1796.4,1796.3,5.56699883]
[1745672324691,4.856,1796.4,1796.3,6.68042932]
[1745672327858,3.0,1796.8,1796.7,5.56575944]
[1745672328064,7.851,1796.8,1796.7,5.56575944]
[1745672329136,7.851,1796.8,1796.6,5.56606924]
[1745672329137,8.35266815,1796.8,1796.6,5.565905]
[1745672329341,0.809,1796.7,1796.5,5.56626466]
[1745672329573,0.809,1796.7,1795.8,6.3451579]
[1745672329574,3.0,1796.3,1795.8,6.3451579]
[1745672329872,0.50166815,1796.0,1795.8,0.77673331]
[1745672330175,0.50166815,1796.0,1795.8,0.73044062]
[1745672330669,0.91615029,1796.0,1795.8,0.73044062]
[1745672331265,0.91615029,1796.0,1795.8,6.29896319]
[1745672331850,0.91615029,1796.0,1795.8,6.29878091]
[1745672332264,0.91615029,1796.0,1795.9,5.56823876]
[1745672335568,0.91615029,1796.0,1795.8,6.29878091]
[1745672336276,0.91615029,1796.0,1795.8,6.29877226]
[1745672336576,1.31066815,1796.1,1795.9,5.56823876]
[1745672336776,1.31066815,1796.1,1795.9,5.56799918]
[1745672339883,1.72435344,1796.1,1795.9,5.56799918]
[1745672340383,1.31066815,1796.1,1795.9,5.56799918]
[1745672344157,1.31066815,1796.1,1795.8,6.29883202]
[1745672344646,1.72322498,1796.1,1795.8,6.29883202]
[1745672350295,1.72322498,1796.1,1795.8,6.29877109]
[1745672350454,1.72322498,1796.1,1795.9,5.56806056]
[1745672351194,0.41255683,1796.1,1795.9,5.56806056]
[1745672351359,8.35266815,1796.2,1795.9,5.56806056]
[1745672352595,8.35266815,1796.2,1796.0,5.56792873]
[1745672353092,3.50166815,1796.2,1796.0,5.56792873]
[1745672353298,7.848,1796.1,1796.0,5.56770123]
[1745672353593,8.26665908,1796.1,1796.0,5.56770123]
[1745672360021,7.848,1796.1,1796.0,5.56770123]
[1745672361220,7.848,1796.1,1795.9,5.56809962]
[1745672361719,7.848,1796.1,1796.0,5.56792873]
[1745672362523,8.27258428,1796.1,1795.9,5.5681261]
[1745672363720,8.27258428,1796.1,1795.9,11.13615436]
[1745672364025,8.27258428,1796.1,1795.9,5.56802826]
[1745672365027,3.0,1796.0,1795.9,5.56802826]
[1745672365528,9.86500318,1796.0,1795.8,0.73044062]
[1745672365722,9.86500318,1796.0,1795.6,5.56897722]
[1745672365925,0.7954,1795.7,1795.3,0.8084]
[1745672366131,4.848,1795.6,1795.4,5.56965354]
[1745672366429,5.34966815,1795.6,1795.3,5.56991447]
[1745672366734,3.0,1795.5,1795.2,5.57022274]
[1745672367032,3.0,1795.5,1795.3,5.5700713]
[1745672368608,3.0,1795.5,1795.3,11.13993698]
[1745672368793,3.0,1795.5,1795.3,5.56986568]
[1745672369604,3.0,1795.5,1795.3,5.56991034]
[1745672370018,3.41671774,1795.5,1795.3,5.56989366]
[1745672370427,3.41671774,1795.5,1795.3,11.13976986]
[1745672371033,3.41671774,1795.5,1795.3,5.5698762]
[1745672371733,3.41671774,1795.5,1795.4,5.56978946]
[1745672371936,3.41671774,1795.5,1795.3,5.56983184]
[1745672372432,3.41671774,1795.5,1795.4,5.56978946]
[1745672380014,3.0,1795.5,1795.4,5.56978946]
[1745672381241,7.848,1795.6,1795.5,5.56947925]
[1745672383135,3.0,1795.5,1795.2,5.57025517]
[1745672383340,3.0,1795.5,1795.1,6.38764552]
[1745672383542,3.0,1795.5,1795.2,5.57028863]
[1745672384222,3.0,1795.5,1795.2,5.57020585]
[1745672384786,3.0,1795.5,1795.3,5.56996663]
[1745672391274,3.0,1795.5,1795.0,5.57102041]
[1745672391275,3.8022,1795.3,1795.0,5.57102041]
[1745672391564,10.41595294,1795.4,1794.7,0.8219]
[1745672391565,4.30386815,1795.1,1794.7,0.8219]
[1745672391741,4.846,1795.0,1794.7,0.8219]
[1745672391943,4.846,1795.0,1794.6,5.57214403]
[1745672392470,5.26699409,1795.0,1794.6,5.57214403]
[1745672394232,5.26699409,1795.0,1794.1,0.05]
[1745672394233,5.57351465,1794.2,1794.1,0.05]
[1745672394566,9.13336815,1794.2,1793.8,6.40719554]
[1745672394776,14.2052189,1794.2,1793.8,6.40725235]
[1745672394936,14.2052189,1794.2,1793.8,0.8327]
[1745672395290,8.6317,1794.2,1793.8,6.40742839]
[1745672395451,8.6317,1794.2,1793.8,11.98195353]
[1745672395777,8.6317,1794.2,1793.8,6.40722514]
[1745672395938,9.13336815,1794.2,1793.8,6.40722514]
[1745672396162,9.13336815,1794.2,1793.9,5.57443269]
[1745672397300,9.13336815,1794.2,1793.8,6.4073144]
[1745672397503,9.13336815,1794.2,1793.8,6.40721643]
[1745672397807,8.6317,1794.2,1793.9,5.57443994]
[1745672399199,9.07558074,1794.1,1793.6,6.33759349]
[1745672399376,3.50166815,1794.1,1793.8,5.57469235]
[1745672400089,3.50166815,1794.1,1793.8,5.5745103]
[1745672400292,3.50166815,1794.3,1794.0,5.57400681]
[1745672400515,4.847,1794.2,1794.1,5.57368077]
[1745672401275,4.847,1794.2,1794.0,5.57398524]
[1745672401276,5.25737135,1794.2,1794.0,5.57398524]
[1745672401706,3.50166815,1794.1,1793.8,5.57448967]
[1745672402011,0.50166815,1793.9,1793.5,1.1715838]
[1745672402169,4.848,1793.8,1793.5,1.1715838]
[1745672402564,4.848,1793.8,1793.6,5.57530974]
[1745672403694,0.41037135,1794.2,1794.0,5.57399588]
[1745672404020,4.848,1794.1,1794.0,6.376236]
[1745672406125,4.848,1794.1,1793.9,5.57433757]
[1745672406308,4.848,1794.1,1793.9,5.57431216]
[1745672406619,0.50166815,1794.0,1793.8,5.57459445]
[1745672406820,3.50166815,1794.0,1793.6,5.57522671]
[1745672407025,0.50166815,1793.8,1793.6,5.57522671]
[1745672407350,4.849,1793.7,1793.6,5.57522671]
[1745672407889,4.849,1793.7,1793.6,6.37732671]
[1745672409933,20.23566815,1794.0,1793.8,5.57463927]
[1745672410228,4.846,1793.9,1793.7,5.57487492]
[1745672410436,7.846,1793.9,1793.8,5.57475749]
[1745672411915,8.26653258,1793.9,1793.8,5.57475749]
[1745672413234,8.26653258,1793.9,1793.6,5.57525506]
[1745672413419,8.26653258,1793.9,1793.5,0.4090838]
[1745672413420,0.50166815,1793.7,1793.5,0.4090838]
[1745672413623,0.50166815,1793.7,1793.5,5.98465388]
[1745672413831,9.40067912,1793.6,1793.5,0.4090838]
[1745672413998,8.57593592,1793.5,1793.1,0.05]
[1745672414205,3.50166815,1793.3,1793.1,5.62692116]
[1745672414544,3.50166815,1793.3,1793.1,0.05]
[1745672414887,9.59166815,1793.3,1793.1,0.05]
[1745672415137,9.50639697,1793.3,1793.2,5.57662279]
[1745672415432,9.50639697,1793.3,1793.1,5.62676802]
[1745672415835,6.09,1793.3,1793.2,5.57662279]
[1745672416035,0.28459602,1794.3,1793.5,5.5756569]
[1745672416036,0.50166815,1793.7,1793.5,5.5756569]
[1745672416207,4.847,1793.6,1793.5,5.5756569]
[1745672416925,4.847,1793.6,1793.5,5.57568999]
[1745672417102,0.50166815,1793.9,1793.6,5.57530211]
[1745672417301,4.847,1793.8,1793.6,5.57530211]
[1745672417640,8.27515652,1793.8,1793.6,5.57530211]
[1745672418344,0.50166815,1793.7,1793.5,5.57553722]
[1745672418941,1.28456815,1793.7,1793.3,6.36226254]
[1745672419144,4.28456815,1793.7,1793.5,5.57566003]
[1745672419453,3.0,1793.7,1793.5,5.5755688]
[1745672419663,5.27515652,1793.8,1793.6,5.57537912]
[1745672419962,8.27515652,1793.8,1793.6,5.57537912]
[1745672420141,4.847,1793.8,1793.7,5.57506829]
[1745672421625,3.0,1793.9,1793.8,5.57475749]
[1745672421823,7.847,1793.9,1793.8,5.57475749]
[1745672423851,7.847,1793.9,1793.2,5.57644313]
[1745672423852,8.34866815,1793.9,1793.5,0.803]
[1745672424054,8.34866815,1793.9,1793.7,5.57485638]
[1745672425126,7.847,1793.9,1793.8,5.57475749]
[1745672425750,19.734,1794.0,1793.9,5.57444673]
[1745672426071,24.581,1794.0,1793.9,6.37744673]
[1745672426233,0.78543912,1794.5,1794.2,5.57351465]
[1745672426430,7.847,1794.4,1794.3,5.57319937]
[1745672426661,0.50166815,1794.5,1794.4,5.57289344]
[1745672426837,5.34866815,1794.5,1794.4,5.57289344]
[1745672427051,8.34866815,1794.5,1794.4,5.57289344]
[1745672427368,8.34866815,1794.5,1794.3,5.57303534]
[1745672428266,8.34866815,1794.5,1794.0,5.57412106]
[1745672428267,13.9213859,1794.5,1794.0,6.37698227]
[1745672428424,0.50166815,1794.1,1793.9,5.57431591]
[1745672428628,4.847,1794.0,1793.9,5.57431591]
[1745672429025,4.847,1794.0,1793.8,5.57475749]
[1745672429234,0.50166815,1793.9,1793.7,5.57492706]
[1745672429773,3.50166815,1793.9,1793.7,5.5749456]
[1745672430928,3.41686889,1793.9,1793.8,5.57475749]
[1745672431424,3.0,1793.9,1793.8,5.57475749]
[1745672431660,4.847,1793.9,1793.8,7.25995515]
[1745672431864,3.50166815,1794.3,1794.1,5.57369695]
[1745672432029,4.847,1794.2,1794.1,5.57369695]
[1745672433168,4.847,1794.2,1794.0,5.57397526]
[1745672433366,4.847,1794.2,1794.0,11.14789911]
[1745672433768,4.847,1794.2,1794.1,5.57382531]
[1745672435462,4.847,1794.2,1794.0,5.57400467]
[1745672436149,4.847,1794.2,1794.1,5.57382531]
[1745672436766,4.847,1794.2,1794.1,6.37682531]
[1745672436966,4.847,1794.2,1794.1,7.57190831]
[1745672437190,3.0,1794.5,1794.4,5.57282517]
[1745672437424,17.24166815,1794.6,1794.5,5.57258289]
[1745672437425,16.74,1794.6,1794.5,5.57258289]
[1745672437556,21.586,1794.6,1794.5,5.57258289]
[1745672437753,16.74,1794.6,1794.5,5.57258289]
[1745672437962,21.585,1794.6,1794.5,5.57258289]
[1745672438592,16.74,1794.6,1794.5,5.57258289]
[1745672438904,21.585,1794.6,1794.5,5.57258289]
[1745672439058,16.74,1794.6,1794.5,5.57258289]
[1745672439260,4.845,1794.7,1794.6,5.57227237]